Cogmind - Beta 15 @@@ ROGUE MODE // 2025.06.22 @ 05:25:52 Player: CL-1C0 Result: Destroyed by ZA-20B(R) with Subdweller Shrapnel Launcher Performance ------------- Evolutions (0) 0 Regions Visited (3) 600 Robots Destroyed (21) 105 Value Destroyed (564) 564 Prototype IDs (0) 0 Alien Tech Used (0) 0 Bonus (0) 0 TOTAL SCORE: 1269 Bonus ------- None Cogmind --------- Core Integrity 0/250 Matter 300/300 Energy 210/250 System Corruption 0% Temperature Cool (64) Movement Rolling (131) Ox3 Location -10/Subcaves Parts ------- > --- POWER (1) -------- Ion Engine > --- PROPULSION (2) --- Wheel Subdweller Monowheel > --- UTILITY (2) ------ Huge Storage Unit Medium Armor Plating > --- WEAPON (2) ------- Subdweller Beam Cannon Subdweller Beam Cannon > --- INVENTORY (25) --- Ion Engine Light Ion Engine Subdweller Power Source Subdweller Power Source Spiked Treads Aluminum Leg Aluminum Leg Wheel Subdweller Monowheel Disposable Heat Sink Small Storage Unit Large Storage Unit Humpback Subdweller Optics Sensor Array Terrain Scanner Light Armor Plating Medium Armor Plating Subdweller Beam Cannon Grenade Launcher Mining Laser Scrap Shield Fragment (45) Peak State ------------ > --- POWER ------------ Subdweller Power Source > --- PROPULSION ------- Subdweller Monowheel Subdweller Monowheel > --- UTILITY ---------- Huge Storage Unit Medium Armor Plating > --- WEAPON ----------- Subdweller Laser Barrage Gun > --- INVENTORY -------- Ion Engine Ion Engine Light Ion Engine Subdweller Power Source Subdweller Power Source Aluminum Leg Aluminum Leg Wheel Wheel Subdweller Monowheel Disposable Heat Sink Small Storage Unit Large Storage Unit Humpback Subdweller Optics Sensor Array Terrain Scanner Light Armor Plating Medium Armor Plating Grenade Launcher Mining Laser Mining Claw Scrap Shield Fragment [Rating: 17] Favorites ----------- Power Ion Engine Engine Ion Engine Propulsion Light Treads Treads Light Treads Leg Aluminum Leg Wheel Subdweller Monowheel Utility Huge Storage Unit Device Terrain Scanner Storage Huge Storage Unit Protection Medium Armor Plating Weapon Light Assault Rifle Energy Gun Subdweller Laser Energy Cannon Subdweller Beam Cannon Ballistic Gun Light Assault Rifle Launcher Grenade Launcher Slashing Weapon Mining Claw Build | -11 -10 -10 -10 ------- Run | Yrd Mat Min Sub Slots Evolved . | . . . . Power . | . . . . Propulsion . | . . . . Utility . | . . . . Weapon . | . . . . Parts Attached 26 | 3 4 2 17 Power 2 | . . . 2 Engine 2 | . . . 2 Core . | . . . . Reactor . | . . . . Propulsion 7 | 2 . . 5 Treads 2 | 2 . . . Leg . | . . . . Wheel 5 | . . . 5 Hover . | . . . . Flight . | . . . . Utility 7 | . 2 2 3 Device 1 | . . . 1 Storage 1 | . . 1 . Processor . | . . . . Hackware . | . . . . Protection 5 | . 2 1 2 Artifact . | . . . . Weapon 10 | 1 2 . 7 Energy Gun 2 | . . . 2 Energy Cannon 2 | . . . 2 Ballistic Gun 4 | 1 1 . 2 Ballistic Cannon . | . . . . Launcher 1 | . 1 . . Special Weapon . | . . . . Impact Weapon . | . . . . Slashing Weapon 1 | . . . 1 Piercing Weapon . | . . . . Special Melee Weapon . | . . . . Unidentified Prototypes . | . . . . Parts Lost 9 | . . . 9 Power 1 | . . . 1 Propulsion 2 | . . . 2 Utility 1 | . . . 1 Weapon 5 | . . . 5 Highest Loss Streak 5 | . . . 5 To Critical Strikes 2 | . . . 2 Average Backups 15 | 7 6 12 20 Power 2 | 1 1 1 3 Propulsion 3 | 5 2 2 4 Utility 6 | . 2 6 8 Weapon 2 | 1 1 2 3 Tool/Special . | . . . . Unused Backups 19 | . 5 . 14 Power 4 | . 1 . 3 Propulsion 4 | . . . 4 Utility 8 | . 3 . 5 Weapon 3 | . 1 . 2 Tool/Special . | . . . . Average Slot Usage (%) 99 | . 93 100 99 Engine 13 | . 14 14 13 Treads 17 | . 28 28 4 Wheel 10 | . . . 22 Device 3 | . . . 7 Storage 14 | . 14 14 14 Protection 10 | . 7 14 6 Energy Gun 2 | . . . 5 Energy Cannon 3 | . . . 8 Ballistic Gun 18 | . 25 27 7 Slashing Weapon 2 | . . . 6 Peak Build Rating 17 | 6 9 9 17 Average Rating 10 | 5 7 9 12 On Entrance 7 | 6 6 9 9 Naked Turns . | . . . . Heaviest Build 108 | 12 21 94 108 Greatest Support 40 | 40 40 40 40 Greatest Overweight (x) 9 | . . 2 9 Average Overweight (x) 2 | . . 1 3 Largest Inventory Capacity 25 | 8 8 25 25 Average Capacity 23 | 8 8 23 25 Most Carried 24 | 8 8 17 24 Average Carried 15 | 6 6 12 21 Final Capacity 25 | 8 8 25 25 Final Carried 23 | 4 8 17 23 Class Distribution -------------------- 82% | Mutant 14% | Scavenger-Mutant Dominant Class ---------------- Mutant | -10/Materials Mutant | -10/Mines Mutant | -10/Subcaves Resources | -11 -10 -10 -10 ----------- Run | Yrd Mat Min Sub Matter Collected 796 | 200 205 128 263 Remotely . | . . . . Salvage Created 665 | . 359 80 226 Parts 31 | . 16 3 12 Haulers Intercepted . | . . . . Recyclers Shooed . | . . . . Parts Field Recycled . | . . . . Retrieved Matter . | . . . . Parts Self-Destructed 8 | . . . 8 Prevented . | . . . . Kills | -11 -10 -10 -10 ------- Run | Yrd Mat Min Sub Combat Hostiles Destroyed 17 | . 7 5 5 Guns 6 | . . 2 4 AOE 11 | . 7 3 1 Classes Destroyed 5 | . 4 . 1 Recycler 3 | . 3 . . Watcher 1 | . 1 . . Swarmer 6 | . 3 3 . Grunt 6 | . 4 2 . Subdweller 5 | . . . 5 Best Kill Streak 7 | . 7 3 2 Combat Bots Only 5 | . 5 3 2 Max Kills in Single Turn 3 | . 3 1 1 Gunslinging . | . . . . Exploded 2 | . 2 1 1 Melee . | . . . . Uniques/NPCs Destroyed . | . . . . Combat | -11 -10 -10 -10 -------- Run | Yrd Mat Min Sub Hostile Shots Fired 115 | . 22 44 49 Missed 26 | . 8 11 7 Hits 89 | . 14 33 42 Projectile 89 | . 14 33 42 AOE 1 | . . . 1 Critical Strikes 5 | . 1 1 3 Damage Taken 1507 | . 196 355 956 Core 308 | . 23 30 255 Absorbed by Shields . | . . . . Core Remaining (%) 100 | 100 . . . Volleys Fired 59 | . 16 14 29 Largest 2 | . 2 2 2 Hottest 160 | . 40 40 160 Shots Fired 85 | . 20 24 41 Gun 63 | . 8 20 35 Cannon 4 | . . . 4 Launcher 18 | . 12 4 2 Special . | . . . . Kinetic 53 | . 8 20 25 Thermal 14 | . . . 14 Explosive 18 | . 12 4 2 Electromagnetic . | . . . . Robot Hit Streak 44 | . 16 24 44 Robot Miss Streak 2 | . . 2 1 Penetration Max . | . . . . Secondary Targets 1 | . . . 1 Max Gunslinging Chain 1 | . . . 1 Shots Hit Robots 73 | . 16 17 40 Core Hits 36 | . 15 9 12 Critical Kills 1 | . . . 1 Critical Parts Destroyed . | . . . . Critical Strikes 1 | . . . 1 Destroy 1 | . . . 1 Melee Attacks 21 | . . . 21 Impact . | . . . . Slashing 21 | . . . 21 Piercing . | . . . . Sneak Attacks . | . . . . Combat Hostiles . | . . . . Follow-up Attacks . | . . . . Damage Inflicted 1877 | . 798 431 648 Guns 623 | . 62 129 432 Cannons 81 | . . . 81 Explosions 1109 | . 735 285 89 Melee 46 | . . . 46 Ramming 18 | . 1 17 . Kinetic 476 | . 62 129 285 Thermal 228 | . . . 228 Explosive 1109 | . 735 285 89 Electromagnetic . | . . . . Impact . | . . . . Slashing 46 | . . . 46 Piercing . | . . . . Highest Corruption . | . . . . Average Corruption . | . . . . Corruption Purged . | . . . . Corruption Blocked . | . . . . Overload Shots . | . . . . Overflow Damage 48 | . 36 12 . Projectiles . | . . . . Explosions 48 | . 36 12 . Melee . | . . . . Knockbacks . | . . . . Impact . | . . . . Kinetic . | . . . . Secondary . | . . . . Self-Inflicted Damage 103 | . 36 39 28 Shots 4 | . 2 1 1 Rammed 4 | . 1 3 . Targets Rammed 4 | . 1 3 . Kicked . | . . . . Crushed . | . . . . Highest Temperature 70 | . 9 70 64 Average Temperature 23 | . 4 30 23 Received Heat Transfer 261 | . 87 81 93 Siege Activations . | . . . . Martial Activations . | . . . . Shielding Activations . | . . . . Robots Disrupted . | . . . . Combat Hostiles . | . . . . Robots Corrupted . | . . . . Combat Hostiles . | . . . . Parts Fried . | . . . . Impact Corruptions . | . . . . Robots Melted . | . . . . Combat Hostiles . | . . . . Parts Melted 2 | . . . 2 Heat Transferred 457 | . . . 457 Parts Sabotaged . | . . . . Parts Stolen . | . . . . Parts Stripped . | . . . . Power Chain Reactions . | . . . . Alert | -11 -10 -10 -10 ------- Run | Yrd Mat Min Sub Maximum Alert Level 1 | . 1 . . Low Security (%) 97 | 100 79 100 . Level 1 2 | . 20 . . Level 2 . | . . . . Level 3 . | . . . . Level 4 . | . . . . Level 5 . | . . . . High Security . | . . . . Max Security . | . . . . Peak Influence 227 | . 227 81 . Initial 80 | . . 80 . Average 24 | . 88 16 . Influence Increases 448 | . 317 131 . Destroy 0b10 Robot/C 240 | . 140 100 . Destroy 0b10 Robot/NC 20 | . 20 . . Destroy Leader 42 | . 22 20 . Disable Machine 60 | . 60 . . Destroy Structure 71 | . 60 11 . Lose Combat Pursuer 15 | . 15 . . Influence Decreases 448 | . 110 338 . Entered New Map 127 | . . 127 . Time Decay 321 | . 110 211 . Squads Dispatched 1 | . 1 . . Investigation . | . . . . Extermination . | . . . . Reinforcement 1 | . 1 . . Assault . | . . . . Garrison . | . . . . Intercept . | . . . . Searches Triggered . | . . . . Construction Impeded . | . . . . Haulers Reinforced . | . . . . Active Scanning Responses . | . . . . Cargo Convoy Interrupts . | . . . . Stealth | -11 -10 -10 -10 --------- Run | Yrd Mat Min Sub Distress Signals 1 | . 1 . . Communications Jammed . | . . . . Distress Signals . | . . . . Times Spotted 21 | . 9 5 7 Peak Tracking Total 5 | . 5 3 2 Tactical Retreats 1 | . 1 . . Traps | -11 -10 -10 -10 ------- Run | Yrd Mat Min Sub Traps Triggered . | . . . . Indirectly . | . . . . Trap Hack Attempts . | . . . . Triggered . | . . . . Disarmed . | . . . . Reprogrammed . | . . . . Reused . | . . . . Traps Extracted . | . . . . Installed . | . . . . Triggered . | . . . . Machines | -11 -10 -10 -10 ---------- Run | Yrd Mat Min Sub Machines Disabled 4 | . 4 . . Max in Single Turn 2 | . 2 . . Machines Repaired . | . . . . Machines Dismantled . | . . . . Machines Sabotaged . | . . . . Overloaded Fab Kills . | . . . . Hacking | -11 -10 -10 -10 --------- Run | Yrd Mat Min Sub Machines Accessed . | . . . . Terminals . | . . . . Fabricators . | . . . . Repair Stations . | . . . . Recycling Units . | . . . . Scanalyzers . | . . . . Garrison Access . | . . . . Total Hacks . | . . . . Successful . | . . . . Failed . | . . . . Catastrophic . | . . . . Database Lockouts . | . . . . Manual . | . . . . Terminals . | . . . . Fabricators . | . . . . Repair Stations . | . . . . Recycling Units . | . . . . Scanalyzers . | . . . . Garrison Access . | . . . . Terminal Hacks . | . . . . Fabricator Hacks . | . . . . Repair Station Hacks . | . . . . Recycling Unit Hacks . | . . . . Scanalyzer . | . . . . Garrison Access Hacks . | . . . . Unauthorized Hacks . | . . . . Terminals . | . . . . Fabricators . | . . . . Repair Stations . | . . . . Recycling Units . | . . . . Scanalyzers . | . . . . Garrison Access . | . . . . Data Cores Recovered . | . . . . Used . | . . . . Hacking Detections . | . . . . Full Trace Events . | . . . . Feedback Events . | . . . . Feedback Blocked . | . . . . Robot Schematics Acquired . | . . . . Robots Built . | . . . . Authchips . | . . . . Time . | . . . . Total Robot Build Rating . | . . . . Part Schematics Acquired . | . . . . Parts Built . | . . . . Authchips . | . . . . Time . | . . . . Total Part Build Rating . | . . . . Parts Repaired . | . . . . Time . | . . . . Parts Recycled . | . . . . Recycled Matter . | . . . . Retrieved Matter . | . . . . Retrieved Components . | . . . . Parts Scanalyzed . | . . . . Part Schematics Acquired . | . . . . Parts Damaged . | . . . . Bothacking | -11 -10 -10 -10 ------------ Run | Yrd Mat Min Sub Used RIF Installer . | . . . . Robots Hacked . | . . . . Non-combat . | . . . . Combat . | . . . . Robot Hacks Applied . | . . . . Relay Couplers Released . | . . . . Fabnet Peak Effective % . | . . . . Robots Rewired . | . . . . Allies Hacked . | . . . . Hacks Repelled . | . . . . Allies | -11 -10 -10 -10 -------- Run | Yrd Mat Min Sub Total Allies 1 | . . 1 . Largest Group 1 | . . 1 . Highest-Rated Group 31 | . . 31 . Highest-Rated Ally 31 | . . 31 . Total Orders . | . . . . Ally Attacks . | . . . . Total Damage . | . . . . Kills . | . . . . Allies Corrupted . | . . . . Allies Melted . | . . . . Intel | -11 -10 -10 -10 ------- Run | Yrd Mat Min Sub Active Infowar (turns) 1008 | . . . 1008 Terrain 1008 | . . . 1008 Robot Analysis Total . | . . . . Derelict Logs Recovered 2 | . . 2 . Drone Launches . | . . . . Drone Recoveries . | . . . . Exploration | -11 -10 -10 -10 ------------- Run | Yrd Mat Min Sub Turns Passed 4116 | 6 257 2037 1816 Spaces Moved 1593 | 1 129 673 790 Core . | . . . . Treads 813 | 1 129 673 10 Legs . | . . . . Wheels 780 | . . . 780 Hover . | . . . . Flight . | . . . . Fastest Speed 130 | 160 160 160 130 Average Speed 209 | 160 160 293 146 Slowest Speed 480 | 160 160 320 480 Overloaded Moves . | . . . . Propulsion Burnouts . | . . . . Robots Hopped . | . . . . Potential Cave-ins . | . . . . Cave-ins Triggered . | . . . . Exploration Rate (%) 41 | 2 26 100 36 Regions Visited 3 Branch Regions 2 Pre-discovered Areas 1 | . . 1 . Known Exits Taken . | . . . . Unknown Exits Taken 3 | 1 1 1 . Scrap Searched 7 | . . 2 5 Spaces Dug 44 | . 44 . . Terrain Destroyed 85 | . 66 11 8 Melee . | . . . . Projectile . | . . . . AOE 85 | . 66 11 8 Terrain Rammed . | . . . . Walls Destroyed . | . . . . Machines Disabled . | . . . . Actions | -11 -10 -10 -10 --------- Run | Yrd Mat Min Sub Total 2245 | 8 161 711 1365 Wait 489 | . 1 4 484 Move 1590 | . 128 672 790 Hop . | . . . . Pick Up 30 | . 6 10 14 Fast Attach 5 | . 1 . 4 Attach 12 | 3 . . 9 Detach 3 | 3 . . . Swap 21 | . 5 6 10 Drop 11 | 2 3 2 4 Fire 59 | . 16 14 29 Melee 21 | . . . 21 Ram . | . . . . Kick . | . . . . Crush 4 | . 1 3 . Escape Stasis . | . . . . Rewire . | . . . . Trap . | . . . . Miscellaneous . | . . . . Route ------- -11/Scrapyard -10/Materials -10/Mines (discovered 3 exits: [*Mat x2] / [*Sub]) -10/Subcaves History --------- Turn | Location | Event 7 | -11/Scrapyard | Discovered new exit (range 0) 7 | -11/Scrapyard | Entered Materials 218 | -10/Materials | Discovered new exit (range 15) 264 | -10/Materials | Entered Mines 310 | -10/Mines | Build established: Mutant 333 | -10/Mines | Discovered new exit (range 10) 542 | -10/Mines | Received a Mining Laser from a helpful Derelict 960 | -10/Mines | Learned 8 Materials zone layouts 1153 | -10/Mines | Discovered new exit (range 8) 2272 | -10/Mines | Discovered new exit (range 10) 2301 | -10/Mines | Entered Subcaves 2627 | -10/Subcaves | Shifting Twisted Machinery released Barrage Gun 2672 | -10/Subcaves | Core integrity fell below 50% 2713 | -10/Subcaves | Lost 5 parts (1n1u3w) 2764 | -10/Subcaves | Shifting Twisted Machinery released Sub. Power Source 2878 | -10/Subcaves | Core integrity fell below 20% 3207 | -10/Subcaves | Build established: Scavenger-Mutant 3523 | -10/Subcaves | Disturbed a concealed Subdweller 3844 | -10/Subcaves | Shifting Twisted Machinery released Spk. Treads 3938 | -10/Subcaves | Build established: Mutant 3986 | -10/Subcaves | A swath of the cavern ceiling suddenly collapsed 4110 | -10/Subcaves | Ambushed by Subdwellers from Twisted Machinery 4117 | -10/Subcaves | Destroyed by ZA-20B(R) with Subdweller Shrapnel Launcher Last Messages --------------- 03539_ Searching scrap... 03539_ Found Riot Gun. 03539_ Found Sub. Monowheel. 03539_ Found 36 Matter. 03546_ Dropped Sub. Laser. 03546_ Acquired Sub. Beam Cannon. 03549_ Dropped Barrage Gun. 03550_ Acquired Sub. Beam Cannon. 03552_ Acquired 20 matter. 03555_ Acquired Sub. Monowheel. 03560_ Subatomizers dissect the Sub. Beam Cannon. 03560_ Acquired Sub. Beam Cannon. 03599_ Sub. Monowheel shoots sparks and powers down. 03600_ Dropped Broken Sub. Monowheel. 03668_ Sub. Monowheel shoots sparks and powers down. 03669_ Dropped Broken Sub. Monowheel. Spk. Treads falls loose from the Twisted Machinery. 03901_ Acquired Spk. Treads. A swath of the cavern ceiling suddenly collapses. 04103_ Acquired 30 matter. Map ----- +----------------------------------------------------+ | ? ????????????????????## #????????????????????? | | ? ????????????????????## #????????????????????? | | ??????????????????????# ##????????????????????? | | ??????????????????????# ##????????????????????? | | ??????????????????????# ##???????????????????? | | ??????????????????????# ##??????????????????? | | ?????????????????????## #??????????????????? | | ?????????????????????# #??????????????????? | | ?????????????????????# ##?????????????????? | | ?????????????????????## ####??????????????? | | ??????????????????? ?## #??????????????? | | ?????????????????? ## ## #??????????????? | | ????????????????? ## #??????????????? | | ????????????????? #??????????????? | | ????????????????# #??????????????? | | ?????????????????# ## ####???????????? | | ?????????????????## ?# #???????????? | | ??????????????????##?## #???????????? | | ?????????????????????# ###???????????? | | ?????????????????????## ## ###?????????????? | | ?????????????????????## #?## ##???????????????? | | ????????????????????## #??## ##???????????????? | | ???????????????????## ##?# %% ##??????????????? | | ????????????""###### #### ##?????????????? | | ???????????# R # #?????????????? | | ???????????# R @ ##????????????? | | ????????????????# ##### #????????????? | | ????????????????????????## #????????????? | | ?????????????????????????## ## #???????????? | | ??????????????????????????#######? ##???????????? | | ?????????????????????????????????? #???????????? | | ?????????????????????????????????? #???????????? | | ??????????????????????????????????? ##???????????? | | ???????????????????????????????????##????????????? | | ?????????????????????????????????????????????????? | | ?????????????????????????????????????????????????? | | ?????????????????????????????????????????????????? | | ?????????????????????????????????????????????????? | | ?????????????????????????????????????????????????? | | ?????????????????????????????????????????????????? | | ?????????????????????????????????????????????????? | | ?????????????????????????????????????????????????? | | ?????????????????????????????????????????????????? | | ?????????????????????????????????????????????????? | | ?????????????????????????????????????????????????? | | ?????????????????????????????????????????????????? | | ?????????????????????????????????????????????????? | | ?????????????????????????????????????????????????? | | ?????????????????????????????????????????????????? | | ?????????????????????????????????????????????????? | +----------------------------------------------------+ Best States ------------- Heat Dissipation 25 Energy Generation 15 Energy Capacity 250 Matter Stores 300 Matter Capacity 300 Sight Range 16 Terrain Scan Range 14 Terrain Scan Density 10 Armor Coverage 225 Evasion (%) 40 Recoil Reduction 2 Item Schematics ----------------- None Robot Schematics ------------------ None Fabricated ------------ Nothing Repaired ---------- Nothing Alien Tech Used ----------------- None Achievements -------------- None Challenges ------------ None Game ------ Seed CoolantMakeshiftCore Manual? 0 Play Time 00:14:02 Cumulative 552.6 hours Start 2025.06.22 @ 05:09:13 End 2025.06.22 @ 05:25:52 Sessions 1 Manual Loads 0 Difficulty Rogue Special Mode None Game No. 667 Rogue 667 Adventurer 0 Explorer 0 Win Type - Total 20 Types 14/0/5/1/0/0/0/0/0/0 Lore% 85 Gallery% 83 Achievement% 83 Wizard Run 0 Options --------- Layout 0 ASCII 0 Keyboard 0 Movement Numpad Keybinds 0 Fullscreen 1 Font 18/SmallcapsGlow Map View 76x50 Zoom Use 0% Tactical HUD 1 Map Filters NONE Filters NONE Steam 1 RUN: 2ea76718-61ad-4ceb-b4c8-80dd5e9d9fa2